fUSD/lending_fUSD_20250312
["ID","MTS","AMOUNT","RATE_DAILY","PERIOD"]
[355968373,1741739441660,-661.25,9.999e-05,2]
[355968374,1741739441669,-500.0,9.999e-05,2]
[355968375,1741739441679,-500.0,9.999e-05,2]
[355968376,1741739441687,-527.93,9.999e-05,2]
[355968377,1741739441696,-500.0,9.999e-05,2]
[355968378,1741739441706,-500.0,9.999e-05,2]
[355968379,1741739441714,-500.0,9.999e-05,2]
[355968380,1741739441723,-625.33,9.999e-05,2]
[355968381,1741739441733,-500.0,9.999e-05,2]
[355968382,1741739441742,-500.0,9.999e-05,2]
[355968383,1741739441751,-250.24303058,9.999e-05,2]
[355968384,1741739441760,-507.8,9.999e-05,2]
[355968385,1741739441769,-746.5,9.999e-05,2]
[355968386,1741739441778,-500.0,9.999e-05,2]
[355968387,1741739441787,-500.0,9.999e-05,2]
[355968388,1741739441796,-500.0,9.999e-05,2]
[355968389,1741739441805,-692.11,9.999e-05,2]
[355968390,1741739441814,-500.0,9.999e-05,2]
[355968391,1741739441824,-758.51,9.999e-05,2]
[355968392,1741739441833,-500.0,9.999e-05,2]
[355968393,1741739441842,-500.0,9.999e-05,2]
[355968394,1741739441852,-663.9,9.999e-05,2]
[355968395,1741739441861,-845.65,9.999e-05,2]
[355968396,1741739441870,-722.74,9.999e-05,2]
[355968397,1741739441880,-500.0,9.999e-05,2]
[355968398,1741739441889,-500.0,9.999e-05,2]
[355968399,1741739441898,-500.0,9.999e-05,2]
[355968400,1741739441908,-629.41,9.999e-05,2]
[355968401,1741739441918,-621.59,9.999e-05,2]
[355968402,1741739441927,-877.3,9.999e-05,2]
[355968403,1741739441937,-500.0,9.999e-05,2]
[355968404,1741739441946,-500.0,9.999e-05,2]
[355968405,1741739441955,-500.0,9.999e-05,2]
[355968406,1741739441965,-500.0,9.999e-05,2]
[355968407,1741739441974,-500.0,9.999e-05,2]
[355968408,1741739441984,-500.0,9.999e-05,2]
[355968409,1741739441993,-500.0,9.999e-05,2]
[355968410,1741739442002,-500.0,9.999e-05,2]
[355968411,1741739442012,-500.0,9.999e-05,2]
[355968412,1741739442022,-500.0,9.999e-05,2]
[355968413,1741739442032,-500.0,9.999e-05,2]
[355968414,1741739442041,-500.0,9.999e-05,2]
[355968415,1741739442050,-1000.0,9.999e-05,2]
[355968416,1741739442060,-1233.64,9.999e-05,2]
[355968417,1741739442069,-500.0,9.999e-05,2]
[355968418,1741739442078,-500.0,9.999e-05,2]
[355968419,1741739442087,-500.0,9.999e-05,2]
[355968420,1741739442096,-606.9,9.999e-05,2]
[355968421,1741739442105,-500.0,9.999e-05,2]
[355968422,1741739442114,-500.0,9.999e-05,2]
[355968423,1741739442124,-500.0,9.999e-05,2]
[355968424,1741739442134,-500.0,9.999e-05,2]
[355968425,1741739442143,-601.01,9.999e-05,2]
[355968426,1741739442152,-500.0,9.999e-05,2]
[355968427,1741739442162,-402.92608485,9.999e-05,2]
[355968428,1741739442171,-500.0,9.999e-05,2]
[355968429,1741739442180,-500.0,9.999e-05,2]
[355968430,1741739442189,-500.0,9.999e-05,2]
[355968431,1741739442198,-500.0,9.999e-05,2]
[355968432,1741739442207,-500.0,9.999e-05,2]
[355968433,1741739442216,-500.0,9.999e-05,2]
[355968434,1741739442225,-571.93,9.999e-05,2]
[355968435,1741739442234,-500.0,9.999e-05,2]
[355968436,1741739442243,-500.0,9.999e-05,2]
[355968437,1741739442252,-500.0,9.999e-05,2]
[355968438,1741739442261,-658.12,9.999e-05,2]
[355968439,1741739442270,-500.0,9.999e-05,2]
[355968440,1741739442279,-500.0,9.999e-05,2]
[355968441,1741739442289,-500.0,9.999e-05,2]
[355968442,1741739442300,-500.0,9.999e-05,2]
[355968443,1741739442310,-656.13,9.999e-05,2]
[355968444,1741739442319,-500.0,9.999e-05,2]
[355968445,1741739442329,-782.23,9.999e-05,2]
[355968446,1741739442339,-500.0,9.999e-05,2]
[355968447,1741739442348,-500.0,9.999e-05,2]
[355968448,1741739442357,-630.18,9.999e-05,2]
[355968449,1741739442367,-645.81,9.999e-05,2]
[355968450,1741739442377,-500.0,9.999e-05,2]
[355968451,1741739442386,-500.0,9.999e-05,2]
[355968456,1741739442589,-500.0,9.999e-05,2]
[355968457,1741739442599,-500.0,9.999e-05,2]
[355968458,1741739442608,-500.0,9.999e-05,2]
[355968459,1741739442618,-500.0,9.999e-05,2]
[355968460,1741739442628,-844.69,9.999e-05,2]
[355968461,1741739442638,-500.0,9.999e-05,2]
[355968462,1741739442647,-500.0,9.999e-05,2]
[355968463,1741739442656,-500.0,9.999e-05,2]
[355968464,1741739442665,-500.0,9.999e-05,2]
[355968465,1741739442674,-1865.86,9.999e-05,2]
[355968466,1741739442684,-592.13,9.999e-05,2]
[355968467,1741739442693,-588.77,9.999e-05,2]
[355968468,1741739442703,-587.11,9.999e-05,2]
[355968469,1741739442713,-500.0,9.999e-05,2]
[355968470,1741739442722,-590.03210828,9.999e-05,2]
[355968471,1741739442732,-758.79,9.999e-05,2]
[355968472,1741739442741,-606.57,9.999e-05,2]
[355968473,1741739442750,-500.0,9.999e-05,2]
[355968474,1741739442760,-500.0,9.999e-05,2]
[355968475,1741739442769,-213.17972706,9.999e-05,2]
[355968476,1741739442779,-204.58782196,9.999e-05,2]
[355968477,1741739442789,-500.0,9.999e-05,2]
[355968478,1741739442799,-500.0,9.999e-05,2]
[355968479,1741739442809,-559.22448838,9.999e-05,2]
[355968480,1741739442818,-795.0,0.0001,2]
[355968481,1741739442828,-7384.81469405,0.0001,2]
[355968482,1741739442843,-4809.29293947,0.0001,2]
[355968483,1741739442855,-876.49937008,0.0001,2]
[355968484,1741739442867,-419.229999,0.0001,2]
[355968485,1741739442879,-22217.14766714,0.0001,2]
[355968488,1741739443079,-33928.85861901,0.0001,2]
[355968489,1741739443499,-500.0,9.998e-05,2]
[355968490,1741739443509,-500.0,9.999e-05,2]
[355968491,1741739443519,-1034.52399846,0.0001,2]
[355968492,1741739443530,-435.38038272,0.0001,2]
[355968493,1741739443542,-22799.63680649,0.0001,2]
[355968494,1741739443636,-500.0,9.998e-05,2]
[355968495,1741739443645,-64464.16774395,0.0001,2]
[355968496,1741739443664,-5739.92921852,0.0001,2]
[355968497,1741739443675,-2976.20822404,0.0001,2]
[355968498,1741739443687,-3583.06796825,0.0001,2]
[355968499,1741739443698,-1600.65,0.0001,2]
[355968500,1741739443709,-717.10633169,0.0001,2]
[355968501,1741739443719,-301.92197159,0.0001,2]
[355968502,1741739443730,-711.33791122,0.0001,2]
[355968503,1741739443741,-384.78499999,0.0001,2]
[355968504,1741739443753,-2793.02318066,0.0001,2]
[355968505,1741739444102,-1741.16837425,0.0001,2]
[355968506,1741739444114,-2429.625,0.0001,2]
[355968507,1741739444125,-1772.16665824,0.0001,2]
[355968508,1741739444137,-8665.65283208,0.0001,2]
[355968509,1741739444148,-547.8259956,0.0001,2]
[355968510,1741739444159,-4044.1486448,0.0001,2]
[355968511,1741739444170,-97555.26947956,0.0001,2]
[355968512,1741739444471,-630.60869999,0.0001,2]
[355968513,1741739444493,-22777.79725648,0.0001,2]
[355968514,1741739444505,-21013.52788047,0.0001,2]
[355968518,1741739445718,-811.61087622,0.0001,2]
[355968519,1741739445886,-3281.0519054,0.0001,2]
[355968520,1741739446057,-708.28,9.998e-05,2]
[355968521,1741739446066,-901.13349508,0.0001,2]
[355968603,1741739733160,1267.57,8.219e-05,2]
[355968605,1741739997788,20847.69639099,0.0002,120]
[355968606,1741740244469,7339.32182922,0.0002,120]
[355968610,1741740546620,500.0,0.0002,120]
[355968619,1741740602591,-150.0,9e-05,2]
[355968629,1741740631987,-122.48,9e-05,2]
[355968630,1741740631997,-550.0,9e-05,2]
[355968631,1741740632006,-150.0,9.006e-05,2]
[355968632,1741740632016,-1000.0,9.023e-05,2]
[355968633,1741740632025,-181.22806418,9.079e-05,2]
[355968634,1741740632035,-187.21,9.079e-05,2]
[355968635,1741740632045,-187.21,9.23e-05,2]
[355968636,1741740632054,-1104.89292283,9.233e-05,2]
[355968637,1741740632063,-187.21,9.382e-05,2]
[355968638,1741740632072,-344.68,9.39e-05,2]
[355968639,1741740632082,-891.35,9.39e-05,2]
[355968640,1741740632092,-181.22806418,9.49e-05,2]
[355968641,1741740632101,-187.21,9.533e-05,2]
[355968642,1741740632111,-150.0,9.562e-05,7]
[355968643,1741740632120,-706.509,9.732e-05,2]
[355968644,1741740632130,-1428.0,9.732e-05,2]
[355968645,1741740632140,-541.0,9.732e-05,2]
[355968646,1741740632149,-209.675,9.732e-05,2]
[355968647,1741740632158,-150.056,9.732e-05,2]
[355968648,1741740632167,-640.064,9.732e-05,2]
[355968649,1741740632178,-150.0,9.732e-05,2]
[355968650,1741740632188,-150.0,9.872e-05,2]
[355968651,1741740632197,-1082.6114,9.873e-05,2]
[355968652,1741740632207,-21519.1711,9.873e-05,2]
[355968654,1741740632216,-251.17,9.873e-05,2]
[355968656,1741740632225,-250.0,9.883e-05,2]
[355968658,1741740632234,-5000.0,9.899e-05,2]
[355968660,1741740632243,-2486.991,9.899e-05,2]
[355968662,1741740632253,-178.937,9.899e-05,2]
[355968664,1741740632262,-1000.0,9.9e-05,2]
[355968666,1741740632271,-16525.849684,9.9e-05,2]
[355968668,1741740632281,-9363.7068,9.9e-05,2]
[355968670,1741740632290,-456.0384,9.9e-05,2]
[355968672,1741740632299,-36381.702,9.9e-05,2]
[355968675,1741740632308,-181.22806418,9.9e-05,2]
[355968678,1741740632317,-750.0,9.9e-05,2]
[355968680,1741740632327,-150.0,9.9e-05,2]
[355968682,1741740632336,-150.0,9.9e-05,2]
[355968684,1741740632345,-177.79042679,9.972e-05,2]
[355968686,1741740632354,-500.0,9.972e-05,2]
[355968688,1741740632364,-500.0,9.972e-05,2]
[355968690,1741740632373,-251.43480951,9.972e-05,2]
[355968692,1741740632383,-101996.0,9.973e-05,2]
[355968694,1741740632392,-502.20120788,9.973e-05,2]
[355968696,1741740632401,-500.0,9.973e-05,2]
[355968698,1741740632410,-500.0,9.973e-05,2]
[355968700,1741740632419,-153.01965749,9.973e-05,2]
[355968702,1741740632429,-500.0,9.996e-05,2]
[355968704,1741740632438,-500.0,9.996e-05,2]
[355968706,1741740632447,-500.0,9.996e-05,2]
[355968708,1741740632456,-662.1,9.996e-05,2]
[355968711,1741740632466,-500.0,9.996e-05,2]
[355968713,1741740632475,-500.0,9.996e-05,2]
[355968715,1741740632485,-564.53,9.996e-05,2]
[355968717,1741740632494,-500.0,9.996e-05,2]
[355968719,1741740632503,-500.0,9.996e-05,2]
[355968721,1741740632515,-500.0,9.996e-05,2]
[355968723,1741740632524,-500.0,9.996e-05,2]
[355968725,1741740632533,-500.0,9.996e-05,2]
[355968726,1741740632542,-562.31,9.996e-05,2]
[355968727,1741740632551,-500.0,9.996e-05,2]
[355968728,1741740632561,-500.0,9.996e-05,2]
[355968730,1741740632570,-500.0,9.996e-05,2]
[355968732,1741740632580,-500.0,9.996e-05,2]
[355968734,1741740632590,-500.0,9.996e-05,2]
[355968736,1741740632600,-500.0,9.996e-05,2]
[355968738,1741740632610,-658.31,9.996e-05,2]
[355968740,1741740632620,-391.35038598,9.996e-05,2]
[355968742,1741740632629,-500.0,9.996e-05,2]
[355968743,1741740632639,-500.0,9.996e-05,2]
[355968744,1741740632649,-378.17912327,9.996e-05,2]
[355968745,1741740632658,-500.0,9.996e-05,2]
[355968746,1741740632670,-500.0,9.996e-05,2]
[355968747,1741740632682,-500.0,9.996e-05,2]
[355968748,1741740632691,-500.0,9.996e-05,2]
[355968749,1741740632703,-500.0,9.996e-05,2]
[355968750,1741740632713,-500.0,9.996e-05,2]
[355968751,1741740632722,-500.0,9.996e-05,2]
[355968752,1741740632731,-500.0,9.996e-05,2]
[355968753,1741740632742,-500.0,9.996e-05,2]
[355968754,1741740632751,-587.3129602,9.996e-05,2]
[355968755,1741740632760,-674.88,9.996e-05,2]
[355968756,1741740632770,-500.0,9.996e-05,2]
[355968757,1741740632779,-500.0,9.996e-05,2]
[355968758,1741740632788,-500.0,9.996e-05,2]
[355968759,1741740632798,-747.04,9.996e-05,2]
[355968760,1741740632808,-902.86,9.996e-05,2]
[355968761,1741740632816,-500.0,9.996e-05,2]
[355968762,1741740632825,-500.0,9.996e-05,2]
[355968763,1741740633058,-500.98,9.996e-05,2]
[355968764,1741740633069,-962.37,9.996e-05,2]
[355968765,1741740633081,-500.0,9.996e-05,2]
[355968766,1741740633091,-500.0,9.996e-05,2]
[355968767,1741740633102,-500.0,9.996e-05,2]
[355968768,1741740633113,-500.0,9.996e-05,2]
[355968769,1741740633124,-500.0,9.996e-05,2]
[355968770,1741740633134,-500.0,9.996e-05,2]
[355968771,1741740633144,-200.97174449,9.996e-05,2]
[355968772,1741740633155,-500.0,9.996e-05,2]
[355968773,1741740633165,-500.0,9.996e-05,2]
[355968774,1741740633180,-500.0,9.996e-05,2]
[355968775,1741740633191,-548.61,9.996e-05,2]
[355968776,1741740633202,-653.61,9.996e-05,2]
[355968777,1741740633212,-500.0,9.996e-05,2]
[355968778,1741740633222,-500.0,9.996e-05,2]
[355968779,1741740633233,-1173.28,9.996e-05,2]
[355968780,1741740633243,-500.0,9.996e-05,2]
[355968781,1741740633253,-551.43,9.996e-05,2]
[355968782,1741740633263,-500.0,9.996e-05,2]
[355968783,1741740633273,-500.0,9.996e-05,2]
[355968784,1741740633283,-500.0,9.996e-05,2]
[355968785,1741740633293,-697.83,9.996e-05,2]
[355968786,1741740633304,-500.0,9.996e-05,2]
[355968787,1741740633313,-500.0,9.996e-05,2]
[355968788,1741740633323,-500.0,9.996e-05,2]
[355968789,1741740633333,-500.0,9.996e-05,2]
[355968790,1741740633342,-1048.7,9.996e-05,2]
[355968791,1741740633352,-508.16,9.996e-05,2]
[355968792,1741740633362,-500.0,9.996e-05,2]
[355968793,1741740633372,-519.81,9.996e-05,2]
[355968794,1741740633381,-500.0,9.996e-05,2]
[355968795,1741740633391,-500.0,9.996e-05,2]
[355968796,1741740633401,-500.0,9.996e-05,2]
[355968797,1741740633410,-581.32,9.996e-05,2]
[355968798,1741740633421,-500.0,9.996e-05,2]
[355968799,1741740633432,-500.0,9.996e-05,2]
[355968800,1741740633442,-500.0,9.996e-05,2]
[355968801,1741740633452,-500.0,9.996e-05,2]
[355968802,1741740633461,-500.0,9.996e-05,2]
[355968803,1741740633471,-500.0,9.996e-05,2]
[355968804,1741740633480,-500.0,9.996e-05,2]
[355968805,1741740633490,-500.0,9.996e-05,2]
[355968806,1741740633500,-500.0,9.996e-05,2]
[355968807,1741740633509,-500.0,9.996e-05,2]
[355968808,1741740633519,-1124.47756739,9.997e-05,2]
[355968809,1741740633529,-500.0,9.997e-05,2]
[355968810,1741740633538,-500.0,9.997e-05,2]
[355968811,1741740633547,-678.77,9.997e-05,2]
[355968812,1741740633557,-500.0,9.997e-05,2]
[355968813,1741740633567,-766.75,9.997e-05,2]
[355968814,1741740633577,-750.79,9.997e-05,2]
[355968815,1741740633586,-500.0,9.997e-05,2]
[355968816,1741740633596,-500.0,9.997e-05,2]
[355968817,1741740633606,-500.0,9.997e-05,2]
[355968818,1741740633616,-500.0,9.997e-05,2]
[355968819,1741740633626,-500.0,9.997e-05,2]
[355968820,1741740633635,-635.01,9.997e-05,2]
[355968821,1741740633644,-733.82,9.997e-05,2]
[355968822,1741740633654,-593.43,9.997e-05,2]
[355968823,1741740633664,-663.96,9.997e-05,2]
[355968824,1741740633677,-500.0,9.997e-05,2]
[355968825,1741740633687,-500.0,9.997e-05,2]
[355968826,1741740633697,-500.0,9.997e-05,2]
[355968827,1741740633706,-700.83,9.997e-05,2]
[355968828,1741740633717,-901.4,9.997e-05,2]
[355968829,1741740633727,-500.0,9.997e-05,2]
[355968830,1741740633736,-500.0,9.997e-05,2]
[355968831,1741740633746,-828.82,9.997e-05,2]
[355968832,1741740633757,-722.12,9.997e-05,2]
[355968833,1741740633767,-500.0,9.997e-05,2]
[355968834,1741740633776,-500.0,9.997e-05,2]
[355968835,1741740633786,-500.0,9.997e-05,2]
[355968836,1741740633795,-640.25,9.997e-05,2]
[355968837,1741740633805,-500.0,9.997e-05,2]
[355968838,1741740633814,-528.55,9.997e-05,2]
[355968839,1741740633823,-500.0,9.997e-05,2]
[355968840,1741740633833,-500.0,9.997e-05,2]
[355968841,1741740633842,-500.0,9.997e-05,2]
[355968842,1741740633852,-500.0,9.997e-05,2]
[355968843,1741740633861,-500.0,9.997e-05,2]
[355968844,1741740633871,-503.73,9.997e-05,2]
[355968845,1741740633880,-709.72,9.997e-05,2]
[355968846,1741740633890,-500.0,9.997e-05,2]
[355968847,1741740633899,-672.05,9.997e-05,2]
[355968848,1741740633909,-500.0,9.997e-05,2]
[355968849,1741740633919,-500.0,9.997e-05,2]
[355968850,1741740633931,-500.0,9.997e-05,2]
[355968851,1741740633941,-843.67,9.997e-05,2]
[355968852,1741740633951,-760.78,9.997e-05,2]
[355968853,1741740633961,-500.0,9.997e-05,2]
[355968854,1741740633971,-500.0,9.997e-05,2]
[355968855,1741740633981,-505.94,9.997e-05,2]
[355968856,1741740633990,-599.28,9.997e-05,2]
[355968857,1741740633999,-500.0,9.997e-05,2]
[355968858,1741740634009,-500.0,9.997e-05,2]
[355968859,1741740634019,-663.28,9.997e-05,2]
[355968860,1741740634028,-500.0,9.997e-05,2]
[355968861,1741740634037,-500.0,9.997e-05,2]
[355968862,1741740634047,-500.0,9.997e-05,2]
[355968863,1741740634057,-545.18,9.997e-05,2]
[355968864,1741740634066,-692.63,9.997e-05,2]
[355968865,1741740634075,-810.41,9.997e-05,2]
[355968866,1741740634085,-840.75,9.997e-05,2]
[355968867,1741740634094,-603.18,9.997e-05,2]
[355968868,1741740634103,-500.0,9.997e-05,2]
[355968869,1741740634113,-500.0,9.997e-05,2]
[355968870,1741740634122,-500.0,9.997e-05,2]
[355968871,1741740634132,-1000.0,9.997e-05,2]
[355968872,1741740634141,-1182.24,9.997e-05,2]
[355968873,1741740634151,-1545.92,9.997e-05,2]
[355968874,1741740634160,-500.0,9.997e-05,2]
[355968875,1741740634170,-693.86,9.997e-05,2]
[355968876,1741740634181,-500.0,9.997e-05,2]
[355968877,1741740634190,-500.0,9.997e-05,2]
[355968878,1741740634200,-500.0,9.997e-05,2]
[355968879,1741740634209,-575.97,9.997e-05,2]
[355968880,1741740634219,-500.0,9.997e-05,2]
[355968881,1741740634228,-500.0,9.997e-05,2]
[355968882,1741740634239,-727.39,9.997e-05,2]
[355968883,1741740634248,-183.69038852,9.997e-05,2]
[355968884,1741740634258,-500.0,9.997e-05,2]
[355968885,1741740634267,-500.0,9.997e-05,2]
[355968886,1741740634276,-548.1,9.997e-05,2]
[355968887,1741740634286,-500.0,9.997e-05,2]
[355968888,1741740634295,-500.0,9.997e-05,2]
[355968889,1741740634305,-500.0,9.997e-05,2]
[355968890,1741740634315,-500.0,9.997e-05,2]
[355968891,1741740634324,-602.73,9.997e-05,2]
[355968892,1741740634334,-645.54,9.997e-05,2]
[355968893,1741740634344,-500.0,9.997e-05,2]
[355968894,1741740634354,-500.0,9.997e-05,2]
[355968895,1741740634364,-634.36,9.997e-05,2]
[355968896,1741740634373,-749.63,9.997e-05,2]
[355968897,1741740634383,-500.0,9.997e-05,2]
[355968898,1741740634392,-541.53,9.997e-05,2]
[355968899,1741740634402,-598.12,9.997e-05,2]
[355968900,1741740634411,-500.0,9.997e-05,2]
[355968901,1741740634420,-544.53,9.997e-05,2]
[355968902,1741740634432,-500.0,9.997e-05,2]
[355968903,1741740634441,-500.0,9.997e-05,2]
[355968904,1741740634451,-500.0,9.997e-05,2]
[355968905,1741740634459,-500.0,9.997e-05,2]
[355968906,1741740634469,-500.0,9.997e-05,2]
[355968907,1741740634478,-500.0,9.997e-05,2]
[355968908,1741740634488,-500.0,9.997e-05,2]
[355968909,1741740634498,-500.0,9.997e-05,2]
[355968910,1741740634507,-500.0,9.997e-05,2]
[355968911,1741740634517,-500.0,9.997e-05,2]
[355968912,1741740634528,-1454.84,9.997e-05,2]
[355968913,1741740634537,-1969.81,9.997e-05,2]
[355968914,1741740634547,-730.07,9.997e-05,2]
[355968915,1741740634556,-567.46,9.997e-05,2]
[355968916,1741740634565,-923.92,9.997e-05,2]
[355968917,1741740634574,-500.0,9.997e-05,2]
[355968918,1741740634583,-581.3,9.997e-05,2]
[355968919,1741740634592,-1011.67,9.997e-05,2]
[355968920,1741740634601,-500.0,9.997e-05,2]
[355968921,1741740634611,-1434.09,9.997e-05,2]
[355968922,1741740634620,-500.0,9.997e-05,2]
[355968923,1741740634630,-591.45714187,9.997e-05,2]
[355968924,1741740634639,-1000.0,9.998e-05,2]
[355968925,1741740634649,-196.55,9.998e-05,2]
[355968926,1741740634658,-610.74,9.998e-05,2]
[355968927,1741740634668,-500.0,9.998e-05,2]
[355968928,1741740634682,-155.76623335,9.998e-05,2]
[355968929,1741740634691,-500.0,9.998e-05,2]
[355968930,1741740634701,-500.0,9.998e-05,2]
[355968931,1741740634711,-657.16,9.998e-05,2]
[355968932,1741740634720,-500.0,9.998e-05,2]
[355968933,1741740634729,-500.0,9.998e-05,2]
[355968934,1741740634738,-649.46,9.998e-05,2]
[355968935,1741740634748,-596.59,9.998e-05,2]
[355968936,1741740634758,-500.0,9.998e-05,2]
[355968937,1741740634767,-500.0,9.998e-05,2]
[355968938,1741740634777,-546.08,9.998e-05,2]
[355968939,1741740634786,-500.0,9.998e-05,2]
[355968940,1741740634796,-500.0,9.998e-05,2]
[355968941,1741740634805,-500.0,9.998e-05,2]
[355968942,1741740634815,-770.09,9.998e-05,2]
[355968943,1741740634824,-500.0,9.998e-05,2]
[355968944,1741740634834,-500.0,9.998e-05,2]
[355968945,1741740634843,-561.32,9.998e-05,2]
[355968946,1741740634852,-500.0,9.998e-05,2]
[355968947,1741740634861,-500.0,9.998e-05,2]
[355968948,1741740634871,-500.0,9.998e-05,2]
[355968949,1741740634879,-754.45,9.998e-05,2]
[355968950,1741740634889,-623.45,9.998e-05,2]
[355968951,1741740634899,-500.0,9.998e-05,2]
[355968952,1741740634908,-500.0,9.998e-05,2]
[355968953,1741740634918,-500.0,9.998e-05,2]
[355968954,1741740634928,-500.0,9.998e-05,2]
[355968955,1741740634938,-500.0,9.998e-05,2]
[355968956,1741740634947,-500.0,9.998e-05,2]
[355968957,1741740634957,-302.12400234,9.998e-05,2]
[355968958,1741740634966,-500.0,9.998e-05,2]
[355968959,1741740634975,-500.0,9.998e-05,2]
[355968960,1741740634985,-633.7,9.998e-05,2]
[355968961,1741740634994,-500.0,9.998e-05,2]
[355968962,1741740635004,-500.0,9.998e-05,2]
[355968963,1741740635013,-500.0,9.998e-05,2]
[355968964,1741740635023,-500.0,9.998e-05,2]
[355968965,1741740635032,-715.4,9.998e-05,2]
[355968966,1741740635041,-500.0,9.998e-05,2]
[355968967,1741740635051,-502.23,9.998e-05,2]
[355968968,1741740635060,-500.0,9.998e-05,2]
[355968969,1741740635070,-500.0,9.998e-05,2]
[355968970,1741740635079,-500.0,9.998e-05,2]
[355968971,1741740635089,-636.24,9.998e-05,2]
[355968972,1741740635098,-500.0,9.998e-05,2]
[355968973,1741740635107,-556.92,9.998e-05,2]
[355968974,1741740635117,-151.0,9.998e-05,2]
[355968975,1741740635126,-601.77,9.998e-05,2]
[355968976,1741740635136,-500.0,9.998e-05,2]
[355968977,1741740635145,-151.0,9.998e-05,2]
[355968978,1741740635155,-500.0,9.998e-05,2]
[355968979,1741740635164,-151.0,9.998e-05,2]
[355968980,1741740635175,-751.96,9.998e-05,2]
[355968981,1741740635185,-430.23910243,9.998e-05,2]
[355968982,1741740635195,-500.0,9.998e-05,2]
[355968983,1741740635205,-595.69,9.998e-05,2]
[355968984,1741740635215,-500.0,9.998e-05,2]
[355968985,1741740635224,-500.0,9.998e-05,2]
[355968986,1741740635234,-500.0,9.998e-05,2]
[355968987,1741740635244,-500.0,9.998e-05,2]
[355968988,1741740635253,-500.0,9.998e-05,2]
[355968989,1741740635262,-500.0,9.998e-05,2]
[355968990,1741740635271,-500.0,9.998e-05,2]
[355968991,1741740635281,-500.0,9.998e-05,2]
[355968992,1741740635291,-500.0,9.998e-05,2]
[355968993,1741740635300,-500.0,9.998e-05,2]
[355968994,1741740635310,-500.0,9.998e-05,2]
[355968995,1741740635319,-500.0,9.998e-05,2]
[355968996,1741740635329,-500.0,9.998e-05,2]
[355968997,1741740635338,-584.83,9.998e-05,2]
[355968998,1741740635348,-500.0,9.998e-05,2]
[355968999,1741740635358,-500.0,9.998e-05,2]
[355969000,1741740635367,-500.0,9.998e-05,2]
[355969001,1741740635377,-500.0,9.998e-05,2]
[355969002,1741740635387,-500.0,9.998e-05,2]
[355969003,1741740635396,-500.0,9.998e-05,2]
[355969004,1741740635405,-500.0,9.998e-05,2]
[355969005,1741740635415,-500.0,9.998e-05,2]
[355969006,1741740635426,-500.0,9.998e-05,2]
[355969007,1741740635437,-630.7,9.998e-05,2]
[355969008,1741740635446,-500.0,9.998e-05,2]
[355969009,1741740635455,-500.0,9.998e-05,2]
[355969010,1741740635465,-500.0,9.998e-05,2]
[355969011,1741740635474,-500.0,9.998e-05,2]
[355969012,1741740635483,-500.0,9.998e-05,2]
[355969013,1741740635494,-500.0,9.998e-05,2]
[355969014,1741740635503,-500.0,9.998e-05,2]
[355969015,1741740635513,-628.79,9.998e-05,2]
[355969016,1741740635522,-500.0,9.998e-05,2]
[355969017,1741740635531,-500.0,9.998e-05,2]
[355969018,1741740635541,-500.0,9.998e-05,2]
[355969019,1741740635550,-632.48,9.998e-05,2]
[355969020,1741740635560,-500.0,9.998e-05,2]
[355969021,1741740635569,-603.92,9.998e-05,2]
[355969022,1741740635579,-500.0,9.998e-05,2]
[355969023,1741740635588,-500.0,9.998e-05,2]
[355969024,1741740635597,-331.79337058,9.998e-05,2]
[355969025,1741740635607,-500.0,9.998e-05,2]
[355969026,1741740635617,-500.0,9.998e-05,2]
[355969027,1741740635626,-500.0,9.998e-05,2]
[355969028,1741740635636,-809.49,9.998e-05,2]